fUSD/lending_fUSD_20250708
["ID","MTS","AMOUNT","RATE_DAILY","PERIOD"]
[370298359,1751941860785,-490.0,0.00030571,7]
[370298360,1751941860795,-1895.61,0.00030571,7]
[370298361,1751941860804,-551.94703153,0.00030571,7]
[370298362,1751941860813,-460.0,0.00030571,7]
[370298363,1751941860822,-2040.43,0.00030571,7]
[370298364,1751941860832,-732.9,0.00030571,7]
[370298365,1751941860842,-460.0,0.00030571,7]
[370298366,1751941860851,-460.0,0.00030571,7]
[370298367,1751941860861,-553.20368935,0.00030571,7]
[370298368,1751941860870,-1680.68,0.00030571,7]
[370298369,1751941860879,-1051.83318972,0.00030571,7]
[370298370,1751941860889,-526.87,0.00030571,7]
[370298371,1751941860898,-344.415785,0.00030571,7]
[370298372,1751941860908,-490.0,0.00030571,7]
[370298373,1751941860917,-1997.32,0.00030571,7]
[370298374,1751941860927,-344.415785,0.00030571,7]
[370298375,1751941860936,-460.0,0.00030571,7]
[370298376,1751941860945,-460.0,0.00030571,7]
[370298377,1751941860955,-490.0,0.00030571,7]
[370298378,1751941860965,-460.0,0.00030571,7]
[370298379,1751941860974,-460.0,0.00030571,7]
[370298380,1751941860984,-460.0,0.00030571,7]
[370298381,1751941860993,-460.0,0.00030571,7]
[370298382,1751941861003,-460.0,0.00030571,7]
[370298383,1751941861013,-549.12755265,0.00030571,7]
[370298384,1751941861022,-152.25516,0.00030571,7]
[370298385,1751941861033,-460.0,0.00030571,7]
[370298386,1751941861042,-460.0,0.00030571,7]
[370298387,1751941861052,-1958.96,0.00030571,7]
[370298388,1751941861061,-460.0,0.00030571,7]
[370298389,1751941861071,-493.75380332,0.00030571,7]
[370298390,1751941861080,-490.0,0.00030571,7]
[370298391,1751941861090,-460.0,0.00030571,7]
[370298392,1751941861099,-557.57379369,0.00030571,7]
[370298393,1751941861109,-460.0,0.00030571,7]
[370298394,1751941861119,-187.01364,0.00030571,7]
[370298395,1751941861129,-460.0,0.00030571,7]
[370298396,1751941861138,-460.0,0.00030571,7]
[370298397,1751941861148,-460.0,0.00030571,7]
[370298398,1751941861159,-187.01364,0.00030571,7]
[370298399,1751941861171,-746.74,0.00030571,7]
[370298400,1751941861180,-553.08915072,0.00030571,7]
[370298401,1751941861189,-460.0,0.00030571,7]
[370298402,1751941861199,-552.33290517,0.00030571,7]
[370298403,1751941861209,-460.0,0.00030571,7]
[370298404,1751941861219,-554.38634867,0.00030571,7]
[370298405,1751941861229,-460.0,0.00030571,7]
[370298406,1751941861238,-460.0,0.00030571,7]
[370298407,1751941861249,-589.35738915,0.00030571,7]
[370298408,1751941861258,-460.0,0.00030571,7]
[370298409,1751941861267,-460.0,0.00030571,7]
[370298410,1751941861277,-806.13,0.00030571,7]
[370298411,1751941861286,-922.2,0.00030571,7]
[370298412,1751941861297,-490.0,0.00030571,7]
[370298413,1751941861306,-490.0,0.00030571,7]
[370298414,1751941861315,-460.0,0.00030571,7]
[370298415,1751941861325,-238.5712925,0.00030571,7]
[370298416,1751941861334,-460.0,0.00030571,7]
[370298417,1751941861344,-460.0,0.00030571,7]
[370298418,1751941861355,-460.0,0.00030571,7]
[370298419,1751941861365,-460.0,0.00030571,7]
[370298420,1751941861374,-460.0,0.00030571,7]
[370298421,1751941861384,-151.0,0.00030571,7]
[370298422,1751941861393,-553.7268261,0.00030571,7]
[370298423,1751941861403,-460.0,0.00030571,7]
[370298424,1751941861413,-460.0,0.00030571,7]
[370298425,1751941861424,-460.0,0.00030571,7]
[370298426,1751941861437,-460.0,0.00030571,7]
[370298427,1751941861447,-1077.15,0.00030571,7]
[370298428,1751941861456,-1580.18,0.00030571,7]
[370298429,1751941861466,-552.07522668,0.00030571,7]
[370298430,1751941861478,-421.35212132,0.00030571,7]
[370298431,1751941861488,-460.0,0.00030571,7]
[370298432,1751941861498,-525.54193392,0.00030572,7]
[370298433,1751941861508,-460.0,0.00030572,7]
[370298434,1751941861519,-460.0,0.00030572,7]
[370298435,1751941861530,-460.0,0.00030572,7]
[370298436,1751941861540,-310.10707852,0.00030572,7]
[370298437,1751941861551,-460.0,0.00030572,7]
[370298438,1751941861562,-460.0,0.00030572,7]
[370298439,1751941861572,-460.0,0.00030572,7]
[370298440,1751941861583,-460.0,0.00030572,7]
[370298441,1751941861592,-526.95967757,0.00030572,7]
[370298442,1751941861603,-525.35902382,0.00030572,7]
[370298443,1751941861614,-460.0,0.00030572,7]
[370298444,1751941861625,-460.0,0.00030572,7]
[370298445,1751941861635,-460.0,0.00030572,7]
[370298446,1751941861646,-468.81442293,0.00030572,7]
[370298447,1751941861655,-460.0,0.00030572,7]
[370298448,1751941861665,-502.71,0.00030572,7]
[370298449,1751941861676,-460.0,0.00030572,7]
[370298450,1751941861685,-460.0,0.00030572,7]
[370298451,1751941861696,-490.0,0.00030572,7]
[370298452,1751941861705,-476.5296728,0.00030572,7]
[370298453,1751941861715,-460.0,0.00030572,7]
[370298454,1751941861725,-776.98,0.00030572,7]
[370298455,1751941861735,-460.0,0.00030572,7]
[370298456,1751941861744,-473.82647589,0.00030572,7]
[370298457,1751941861754,-460.0,0.00030572,7]
[370298458,1751941861764,-460.0,0.00030572,7]
[370298459,1751941861773,-460.0,0.00030572,7]
[370298460,1751941861782,-460.0,0.00030572,7]
[370298461,1751941861791,-252.47937561,0.00030572,7]
[370298462,1751941861801,-460.0,0.00030572,7]
[370298463,1751941861811,-460.0,0.00030572,7]
[370298464,1751941861820,-151.0,0.00030572,7]
[370298465,1751941861829,-460.0,0.00030572,7]
[370298466,1751941861839,-460.0,0.00030572,7]
[370298467,1751941861848,-460.0,0.00030572,7]
[370298468,1751941861858,-460.0,0.00030572,7]
[370298469,1751941861867,-465.80065382,0.00030572,7]
[370298470,1751941861877,-460.0,0.00030572,7]
[370298471,1751941861886,-460.0,0.00030572,7]
[370298472,1751941861896,-593.82068085,0.00030572,7]
[370298473,1751941861905,-460.0,0.00030572,7]
[370298474,1751941861915,-153.921458,0.00030572,7]
[370298475,1751941861924,-545.53854155,0.00030572,7]
[370298476,1751941861933,-163.031394,0.00030572,7]
[370298477,1751941861943,-460.0,0.00030572,7]
[370298478,1751941861952,-151.0,0.00030572,7]
[370298479,1751941861961,-460.0,0.00030572,7]
[370298480,1751941861971,-460.0,0.00030572,7]
[370298481,1751941861980,-615.76,0.00030572,7]
[370298482,1751941861990,-460.0,0.00030572,7]
[370298483,1751941862000,-642.03,0.00030572,7]
[370298484,1751941862009,-151.0,0.00030572,7]
[370298485,1751941862018,-441.078767,0.00030572,7]
[370298486,1751941862028,-441.078767,0.00030572,7]
[370298487,1751941862037,-151.0,0.00030572,7]
[370298488,1751941862049,-487.88782899,0.00030572,7]
[370298489,1751941862059,-460.0,0.00030572,7]
[370298490,1751941862069,-460.0,0.00030572,7]
[370298491,1751941862078,-460.0,0.00030572,7]
[370298492,1751941862087,-151.0,0.00030572,7]
[370298493,1751941862097,-598.85,0.00030572,7]
[370298494,1751941862106,-151.0,0.00030572,7]
[370298495,1751941862115,-552.85,0.00030572,7]
[370298496,1751941862125,-151.0,0.00030572,7]
[370298497,1751941862134,-460.0,0.00030572,7]
[370298498,1751941862143,-460.0,0.00030572,7]
[370298499,1751941862152,-460.0,0.00030572,7]
[370298500,1751941862161,-151.0,0.00030572,7]
[370298501,1751941862171,-151.0,0.00030572,7]
[370298502,1751941862180,-460.0,0.00030572,7]
[370298503,1751941862189,-460.0,0.00030572,7]
[370298504,1751941862199,-151.0,0.00030572,7]
[370298505,1751941862208,-460.0,0.00030572,7]
[370298506,1751941862217,-460.0,0.00030572,7]
[370298507,1751941862226,-158.358971,0.00030572,7]
[370298508,1751941862235,-460.0,0.00030572,7]
[370298509,1751941862245,-151.0,0.00030572,7]
[370298510,1751941862254,-220.835815,0.00030572,7]
[370298511,1751941862263,-479.41351237,0.00030572,7]
[370298512,1751941862272,-156.984292,0.00030572,7]
[370298513,1751941862281,-151.0,0.00030572,7]
[370298514,1751941862290,-151.0,0.00030572,7]
[370298515,1751941862301,-151.0,0.00030572,7]
[370298516,1751941862310,-151.0,0.00030572,7]
[370298517,1751941862320,-151.0,0.00030572,7]
[370298518,1751941862329,-258.275655,0.00030572,7]
[370298519,1751941862338,-258.275655,0.00030572,7]
[370298520,1751941862347,-716.386919,0.00030572,7]
[370298521,1751941862356,-716.386919,0.00030572,7]
[370298522,1751941862367,-200.798666,0.00030572,7]
[370298523,1751941862376,-200.798666,0.00030572,7]
[370298524,1751941862386,-773.049683,0.00030572,7]
[370298525,1751941862394,-773.049683,0.00030572,7]
[370298526,1751941862403,-151.0,0.00030572,7]
[370298527,1751941862413,-151.0,0.00030572,7]
[370298528,1751941862424,-151.0,0.00030572,7]
[370298529,1751941862433,-151.0,0.00030572,7]
[370298530,1751941862443,-151.0,0.00030572,7]
[370298531,1751941862452,-151.0,0.00030572,7]
[370298532,1751941862461,-151.0,0.00030583,7]
[370298533,1751941862473,-151.0,0.00030583,7]
[370298534,1751941862482,-151.0,0.00030583,7]
[370298535,1751941862491,-151.0,0.00030583,7]
[370298536,1751941862500,-151.0,0.00030583,7]
[370298537,1751941862510,-151.0,0.00030583,7]
[370298538,1751941862521,-475.0,0.00030616,2]
[370298539,1751941862532,-2465.18,0.0003062,2]
[370298540,1751941862542,-9962.37,0.0003062,2]
[370298541,1751941862551,-150.99,0.0003062,2]
[370298542,1751941862561,-9999.99,0.0003062,2]
[370298543,1751941862571,-299.99,0.0003062,12]
[370298544,1751941862580,-167.87,0.0003065,2]
[370298545,1751941862590,-151.0,0.00030662,7]
[370298546,1751941862599,-151.0,0.00030662,7]
[370298547,1751941862609,-151.0,0.00030662,7]
[370298548,1751941862619,-286.25,0.00030662,2]
[370298549,1751941862628,-151.0,0.00030664,7]
[370298550,1751941862637,-151.0,0.00030664,7]
[370298551,1751941862647,-151.0,0.00030664,7]
[370298552,1751941862656,-765.59,0.00030681,7]
[370298553,1751941862666,-500.0,0.00030681,7]
[370298554,1751941862676,-500.0,0.00030682,7]
[370298555,1751941862685,-500.0,0.00030682,7]
[370298556,1751941862695,-500.0,0.00030682,7]
[370298557,1751941862704,-500.0,0.00030682,7]
[370298558,1751941862715,-500.0,0.00030682,7]
[370298559,1751941862724,-500.0,0.00030682,7]
[370298560,1751941862734,-197.81196381,0.00030683,2]
[370298561,1751941862743,-428.13891885,0.00030683,7]
[370298562,1751941862752,-1650.45,0.00030683,7]
[370298563,1751941862762,-521.53,0.00030683,7]
[370298564,1751941862772,-820.97,0.00030683,7]
[370298565,1751941862782,-820.97,0.00030683,7]
[370298566,1751941862791,-1000.0,0.00030683,2]
[370298567,1751941862801,-500.0,0.00030684,7]
[370298568,1751941862811,-150.0,0.00030684,7]
[370298569,1751941862821,-500.0,0.00030684,7]
[370298570,1751941862830,-500.0,0.00030684,7]
[370298571,1751941862840,-150.0,0.00030684,7]
[370298572,1751941862850,-500.0,0.00030684,7]
[370298573,1751941862860,-500.0,0.00030684,7]
[370298574,1751941862870,-500.0,0.00030684,7]
[370298575,1751941862880,-150.0,0.00030684,7]
[370298576,1751941862890,-500.0,0.00030684,7]
[370298577,1751941862900,-227.39126109,0.00030684,7]
[370298578,1751941862910,-500.0,0.00030684,2]
[370298579,1751941862919,-1198.0,0.00030684,7]
[370298580,1751941862929,-500.0,0.00030684,7]
[370298581,1751941862939,-500.0,0.00030684,2]
[370298582,1751941863084,-500.0,0.00030684,7]
[370298583,1751941863095,-500.0,0.00030684,60]
[370298584,1751941863104,-500.0,0.00030684,7]
[370298585,1751941863115,-566.0,0.00030684,7]
[370298586,1751941863124,-175.96700135,0.00030684,7]
[370298587,1751941863134,-500.0,0.00030684,7]
[370298588,1751941863143,-500.0,0.00030684,7]
[370298589,1751941863153,-500.0,0.00030684,7]
[370298590,1751941863163,-500.0,0.00030684,7]
[370298591,1751941863172,-580.0,0.00030684,7]
[370298592,1751941863182,-580.0,0.00030684,7]
[370298593,1751941863191,-151.0,0.00030684,7]
[370298594,1751941863201,-460.0,0.00030684,7]
[370298595,1751941863211,-460.0,0.00030684,7]
[370298596,1751941863220,-460.0,0.00030684,7]
[370298597,1751941863230,-460.0,0.00030684,7]
[370298598,1751941863239,-151.0,0.00030684,7]
[370298599,1751941863248,-151.0,0.00030684,7]
[370298600,1751941863258,-151.0,0.00030684,7]
[370298601,1751941863267,-151.824629,0.00030684,7]
[370298602,1751941863277,-152.443467,0.00030684,7]
[370298603,1751941863287,-151.0,0.00030684,7]
[370298604,1751941863297,-151.0,0.00030684,7]
[370298605,1751941863306,-151.0,0.00030684,7]
[370298606,1751941863316,-260.058414,0.00030684,7]
[370298607,1751941863326,-584.75,0.00030684,7]
[370298608,1751941863336,-460.0,0.00030684,7]
[370298609,1751941863345,-151.0,0.00030684,7]
[370298610,1751941863354,-460.0,0.00030684,7]
[370298611,1751941863364,-857.46,0.00030684,7]
[370298612,1751941863373,-460.0,0.00030684,7]
[370298613,1751941863383,-460.0,0.00030684,7]
[370298614,1751941863392,-460.0,0.00030684,7]
[370298615,1751941863402,-460.0,0.00030684,7]
[370298616,1751941863411,-460.0,0.00030684,7]
[370298617,1751941863420,-153.221333,0.00030684,7]
[370298618,1751941863429,-151.0,0.00030684,7]
[370298619,1751941863439,-441.078767,0.00030684,7]
[370298620,1751941863448,-460.0,0.00030684,7]
[370298621,1751941863458,-460.0,0.00030684,7]
[370298622,1751941863470,-441.078767,0.00030684,7]
[370298623,1751941863481,-151.0,0.00030684,7]
[370298624,1751941863490,-165.31492783,0.00030684,7]
[370298625,1751941863500,-485.29965239,0.00030684,7]
[370298626,1751941863511,-460.0,0.00030684,7]
[370298627,1751941863520,-460.0,0.00030684,7]
[370298628,1751941863530,-158.283673,0.00030684,7]
[370298629,1751941863539,-495.41942864,0.00030684,7]
[370298630,1751941863551,-694.68,0.00030684,7]
[370298631,1751941863561,-460.0,0.00030684,7]
[370298632,1751941863571,-460.0,0.00030684,7]
[370298633,1751941863581,-726.7,0.00030684,7]
[370298634,1751941863590,-460.0,0.00030684,7]
[370298635,1751941863600,-151.0,0.00030684,7]
[370298636,1751941863609,-460.0,0.00030684,7]
[370298637,1751941863619,-460.0,0.00030684,7]
[370298638,1751941863628,-460.0,0.00030684,7]
[370298639,1751941863638,-460.0,0.00030684,7]
[370298640,1751941863648,-460.0,0.00030684,7]
[370298641,1751941863658,-695.84,0.00030684,7]
[370298642,1751941863667,-460.0,0.00030684,7]
[370298643,1751941863677,-460.0,0.00030684,7]
[370298644,1751941863687,-151.0,0.00030684,7]
[370298645,1751941863696,-151.0,0.00030684,7]
[370298646,1751941863706,-460.0,0.00030684,7]
[370298647,1751941863715,-460.0,0.00030684,7]
[370298648,1751941863725,-484.0,0.00030684,7]
[370298649,1751941863734,-460.0,0.00030684,7]
[370298650,1751941863744,-460.0,0.00030684,7]
[370298651,1751941863753,-460.0,0.00030684,7]
[370298652,1751941863763,-460.0,0.00030684,7]
[370298653,1751941863772,-672.92,0.00030684,7]
[370298654,1751941863782,-460.0,0.00030684,7]
[370298655,1751941863791,-460.0,0.00030684,7]
[370298656,1751941863801,-460.0,0.00030684,7]
[370298657,1751941863810,-460.0,0.00030684,7]
[370298658,1751941863820,-460.0,0.00030684,7]
[370298659,1751941863830,-460.0,0.00030684,7]
[370298660,1751941863840,-460.0,0.00030684,7]
[370298661,1751941863850,-684.91,0.00030684,7]
[370298662,1751941863859,-460.0,0.00030684,7]
[370298663,1751941863869,-151.0,0.00030684,7]
[370298664,1751941863879,-861.74,0.00030684,7]
[370298665,1751941863888,-151.0,0.00030684,7]
[370298666,1751941863898,-460.0,0.00030684,7]
[370298667,1751941863908,-460.0,0.00030684,7]
[370298668,1751941863917,-460.0,0.00030684,7]
[370298669,1751941863927,-460.0,0.00030684,7]
[370298670,1751941863936,-460.0,0.00030684,7]
[370298671,1751941863946,-151.0,0.00030684,7]
[370298672,1751941863955,-460.0,0.00030684,7]
[370298673,1751941863965,-604.35432356,0.00030684,7]
[370298674,1751941863975,-547.80086059,0.00030684,7]
[370298675,1751941863984,-460.0,0.00030684,7]
[370298676,1751941863993,-460.0,0.00030684,7]
[370298677,1751941864002,-460.0,0.00030684,7]
[370298678,1751941864011,-460.0,0.00030684,7]
[370298679,1751941864021,-460.0,0.00030684,7]
[370298680,1751941864030,-460.0,0.00030684,7]
[370298681,1751941864040,-847.27,0.00030684,7]
[370298682,1751941864050,-460.0,0.00030684,7]
[370298683,1751941864060,-460.0,0.00030684,7]
[370298684,1751941864069,-460.0,0.00030684,7]
[370298685,1751941864079,-460.0,0.00030684,7]
[370298686,1751941864088,-752.26,0.00030684,7]
[370298687,1751941864100,-460.0,0.00030684,7]
[370298688,1751941864110,-460.0,0.00030684,7]
[370298689,1751941864120,-460.0,0.00030684,7]
[370298690,1751941864129,-524.57372394,0.00030684,7]
[370298691,1751941864138,-460.0,0.00030684,7]
[370298692,1751941864148,-460.0,0.00030684,7]
[370298693,1751941864157,-460.0,0.00030684,7]
[370298694,1751941864167,-460.0,0.00030684,7]
[370298695,1751941864177,-460.0,0.00030684,7]
[370298696,1751941864186,-151.0,0.00030684,7]
[370298697,1751941864196,-460.0,0.00030684,7]
[370298698,1751941864206,-460.0,0.00030684,7]
[370298699,1751941864215,-460.0,0.00030684,7]
[370298700,1751941864224,-225.06104163,0.00030684,7]
[370298701,1751941864235,-460.0,0.00030684,7]
[370298702,1751941864244,-1129.21,0.00030684,7]
[370298703,1751941864254,-460.0,0.00030684,7]
[370298704,1751941864263,-460.0,0.00030684,7]
[370298705,1751941864272,-460.0,0.00030684,7]
[370298706,1751941864282,-859.22,0.00030684,7]
[370298707,1751941864291,-496.05,0.00030684,7]
[370298708,1751941864301,-495.48703029,0.00030684,7]
[370298709,1751941864311,-460.0,0.00030684,7]
[370298710,1751941864320,-727.29,0.00030684,7]
[370298711,1751941864330,-460.0,0.00030684,7]
[370298712,1751941864339,-508.86490767,0.00030684,7]
[370298713,1751941864349,-491.36,0.00030684,7]
[370298714,1751941864359,-460.0,0.00030684,7]
[370298715,1751941864368,-460.0,0.00030684,7]
[370298716,1751941864377,-460.0,0.00030684,7]
[370298717,1751941864387,-460.0,0.00030684,7]
[370298718,1751941864397,-460.0,0.00030684,7]
[370298719,1751941864406,-659.35,0.00030684,7]
[370298720,1751941864416,-1031.55,0.00030684,7]
[370298721,1751941864425,-151.0,0.00030684,7]
[370298722,1751941864435,-683.97,0.00030684,7]
[370298723,1751941864444,-648.01,0.00030684,7]
[370298724,1751941864453,-460.0,0.00030684,7]
[370298725,1751941864462,-1795.02,0.00030684,7]
[370298726,1751941864474,-460.0,0.00030684,7]
[370298727,1751941864483,-460.0,0.00030684,7]
[370298728,1751941864492,-625.5,0.00030684,7]
[370298729,1751941864501,-529.46,0.00030684,7]
[370298730,1751941864511,-460.0,0.00030684,7]
[370298731,1751941864521,-741.27,0.00030684,7]
[370298732,1751941864530,-596.71,0.00030684,7]
[370298733,1751941864540,-460.0,0.00030684,7]
[370298734,1751941864551,-460.0,0.00030684,7]
[370298735,1751941864561,-565.98,0.00030684,7]
[370298736,1751941864570,-151.0,0.00030684,7]
[370298737,1751941864580,-151.0,0.00030684,7]
[370298738,1751941864589,-460.0,0.00030684,7]
[370298739,1751941864599,-460.0,0.00030684,7]
[370298740,1751941864608,-460.0,0.00030684,7]
[370298741,1751941864617,-460.0,0.00030684,7]
[370298742,1751941864627,-460.0,0.00030684,7]
[370298743,1751941864637,-739.48,0.00030684,7]
[370298744,1751941864647,-460.0,0.00030684,7]
[370298745,1751941864656,-864.46,0.00030684,7]
[370298746,1751941864666,-460.0,0.00030684,7]
[370298747,1751941864675,-794.88,0.00030684,7]
[370298748,1751941864685,-159.742546,0.00030684,7]
[370298749,1751941864694,-151.0,0.00030684,7]
[370298750,1751941864704,-460.0,0.00030684,7]
[370298751,1751941864713,-795.15,0.00030684,7]
[370298752,1751941864723,-577.73,0.00030684,7]
[370298753,1751941864732,-900.95,0.00030684,7]
[370298754,1751941864742,-460.0,0.00030684,7]
[370298755,1751941864751,-460.0,0.00030684,7]
[370298756,1751941864761,-824.52,0.00030684,7]
[370298757,1751941864771,-460.0,0.00030684,7]
[370298758,1751941864780,-707.54,0.00030684,7]
[370298759,1751941864789,-460.0,0.00030684,7]
[370298760,1751941864799,-509.52743838,0.00030684,7]
[370298761,1751941864809,-460.0,0.00030684,7]
[370298762,1751941864820,-460.0,0.00030684,7]
[370298763,1751941864829,-460.0,0.00030684,7]
[370298764,1751941864839,-732.45,0.00030684,7]
[370298765,1751941864851,-460.0,0.00030684,7]
[370298766,1751941864860,-768.56,0.00030684,7]
[370298767,1751941864869,-707.7,0.00030684,7]
[370298768,1751941864879,-593.26,0.00030684,7]
[370298769,1751941864889,-460.0,0.00030684,7]
[370298770,1751941864899,-460.0,0.00030684,7]
[370298771,1751941864909,-258.275655,0.00030684,7]
[370298772,1751941864920,-474.51293208,0.00030684,7]
[370298773,1751941864931,-672.14,0.00030684,7]
[370298774,1751941864941,-258.275655,0.00030684,7]
[370298775,1751941864951,-675.4,0.00030684,7]
[370298776,1751941864960,-460.0,0.00030684,7]
[370298777,1751941864970,-460.0,0.00030684,7]
[370298778,1751941864980,-460.0,0.00030684,7]
[370298779,1751941864989,-460.0,0.00030684,7]
[370298780,1751941864999,-460.0,0.00030684,7]
[370298781,1751941865008,-716.386919,0.00030684,7]
[370298782,1751941865018,-460.0,0.00030684,7]
[370298783,1751941865028,-716.386919,0.00030684,7]
[370298784,1751941865037,-460.0,0.00030684,7]
[370298785,1751941865047,-460.0,0.00030684,7]
[370298786,1751941865057,-460.0,0.00030684,7]
[370298787,1751941865066,-460.0,0.00030684,7]
[370298788,1751941865075,-727.11,0.00030684,7]
[370298789,1751941865085,-460.0,0.00030684,7]
[370298790,1751941865094,-151.0,0.00030684,7]
[370298791,1751941865103,-547.51,0.00030684,7]
[370298792,1751941865113,-460.0,0.00030684,7]
[370298793,1751941865122,-460.0,0.00030684,7]
[370298794,1751941865132,-460.0,0.00030684,7]
[370298795,1751941865141,-460.0,0.00030684,7]
[370298796,1751941865151,-577.08,0.00030684,7]
[370298797,1751941865286,-716.92,0.00030684,7]
[370298798,1751941865297,-460.0,0.00030684,7]
[370298799,1751941865311,-460.0,0.00030684,7]
[370298800,1751941865320,-460.0,0.00030684,7]
[370298801,1751941865330,-460.0,0.00030684,7]
[370298802,1751941865340,-460.0,0.00030684,7]
[370298803,1751941865349,-797.4,0.00030684,7]
[370298804,1751941865359,-544.96555684,0.00030684,7]
[370298805,1751941865368,-460.0,0.00030684,7]
[370298806,1751941865378,-460.0,0.00030684,7]
[370298807,1751941865387,-1640.32,0.00030684,7]
[370298808,1751941865396,-460.0,0.00030684,7]
[370298809,1751941865405,-681.43,0.00030684,7]
[370298810,1751941865415,-460.0,0.00030684,7]
[370298811,1751941865424,-2804.1,0.00030684,7]
[370298812,1751941865433,-460.0,0.00030684,7]
[370298813,1751941865442,-525.58,0.00030684,7]
[370298814,1751941865451,-460.0,0.00030684,7]
[370298815,1751941865460,-460.0,0.00030684,7]
[370298816,1751941865472,-460.0,0.00030684,7]
[370298817,1751941865483,-413.245056,0.00030684,7]
[370298818,1751941865492,-460.0,0.00030684,7]
[370298819,1751941865502,-1291.01,0.00030684,7]
[370298820,1751941865511,-460.0,0.00030684,7]
[370298821,1751941865521,-385.978385,0.00030684,7]
[370298822,1751941865530,-460.0,0.00030684,7]
[370298823,1751941865540,-506.833832,0.00030684,7]
[370298824,1751941865550,-1520.65,0.00030684,7]
[370298825,1751941865559,-460.0,0.00030684,7]
[370298826,1751941865569,-695.98,0.00030684,7]
[370298827,1751941865578,-460.0,0.00030684,7]
[370298828,1751941865587,-460.0,0.00030684,7]
[370298829,1751941865599,-781.09,0.00030684,7]
[370298830,1751941865608,-460.0,0.00030684,7]
[370298831,1751941865617,-874.65,0.00030684,7]
[370298832,1751941865626,-460.0,0.00030684,7]
[370298833,1751941865635,-460.0,0.00030684,7]
[370298834,1751941865644,-460.0,0.00030684,7]
[370298835,1751941865653,-460.0,0.00030684,7]
[370298836,1751941865663,-460.0,0.00030684,7]
[370298837,1751941865672,-460.0,0.00030684,7]
[370298838,1751941865682,-508.30051626,0.00030684,7]
[370298839,1751941865691,-540.64,0.00030684,7]
[370298840,1751941865701,-460.0,0.00030684,7]
[370298841,1751941865711,-200.798666,0.00030684,7]
[370298842,1751941865720,-460.0,0.00030684,7]
[370298843,1751941865729,-566.89,0.00030684,7]
[370298844,1751941865739,-964.86,0.00030684,7]
[370298845,1751941865747,-200.798666,0.00030684,7]
[370298846,1751941865758,-750.54,0.00030684,7]
[370298847,1751941865770,-460.0,0.00030684,7]
[370298848,1751941865779,-460.0,0.00030684,7]
[370298849,1751941865789,-460.0,0.00030684,7]
[370298850,1751941865798,-774.26,0.00030684,7]
[370298851,1751941865807,-460.0,0.00030684,7]
[370298852,1751941865817,-521.58,0.00030684,7]
[370298853,1751941865826,-460.0,0.00030684,7]
[370298854,1751941865835,-460.0,0.00030684,7]
[370298855,1751941865845,-460.0,0.00030684,7]
[370298856,1751941865854,-644.93,0.00030684,7]
[370298857,1751941865863,-3222.1,0.00030684,7]
[370298858,1751941865872,-460.0,0.00030684,7]